[Event "*** Titled Tuesday Blitz"]
[Site "Chess.com"]
[Date "2020.04.07"]
[Round "2"]
[White "wild_cat99"]
[Black "almo64"]
[Result "1/2-1/2"]
[WhiteElo "2523"]
[BlackElo "2660"]
[TimeControl "180+1"]
[EndTime "13:19:59 PDT"]
[Termination "Game drawn - insufficient material"]

1. Nf3 {[%clk 0:03:00.9]} 1... d5 {[%clk 0:02:59.5]} 2. e3 {[%clk 0:03:01.1]}
2... Bf5 {[%clk 0:02:56.7]} 3. c4 {[%clk 0:03:00.2]} 3... c6 {[%clk 0:02:57]} 4.
Nc3 {[%clk 0:02:58.8]} 4... e6 {[%clk 0:02:56.8]} 5. Qb3 {[%clk 0:02:51.3]} 5...
Qb6 {[%clk 0:02:55.8]} 6. d4 {[%clk 0:02:42.9]} 6... Nd7 {[%clk 0:02:53.9]} 7.
Bd2 {[%clk 0:02:36.8]} 7... h6 {[%clk 0:02:53.3]} 8. Be2 {[%clk 0:02:35.7]} 8...
Ngf6 {[%clk 0:02:52.8]} 9. O-O {[%clk 0:02:35]} 9... Be7 {[%clk 0:02:52.8]} 10.
c5 {[%clk 0:02:34.1]} 10... Qc7 {[%clk 0:02:52.5]} 11. h3 {[%clk 0:02:29.6]}
11... O-O {[%clk 0:02:51.2]} 12. Nh4 {[%clk 0:02:24.1]} 12... Bh7 {[%clk
0:02:50.4]} 13. f4 {[%clk 0:02:23.6]} 13... b6 {[%clk 0:02:49.8]} 14. cxb6
{[%clk 0:02:20.1]} 14... Qxb6 {[%clk 0:02:48.7]} 15. Qxb6 {[%clk 0:02:02.1]}
15... Nxb6 {[%clk 0:02:40.7]} 16. a4 {[%clk 0:02:00.7]} 16... Nc4 {[%clk
0:02:36]} 17. Bxc4 {[%clk 0:02:00.1]} 17... dxc4 {[%clk 0:02:36.3]} 18. f5
{[%clk 0:01:54.7]} 18... Nd5 {[%clk 0:02:28.8]} 19. Nf3 {[%clk 0:01:42]} 19...
Nxc3 {[%clk 0:02:27.5]} 20. Bxc3 {[%clk 0:01:42.6]} 20... Bxf5 {[%clk
0:02:27.7]} 21. Rfe1 {[%clk 0:01:40.3]} 21... Rfc8 {[%clk 0:02:18.4]} 22. e4
{[%clk 0:01:39.2]} 22... Bh7 {[%clk 0:02:18.1]} 23. Ne5 {[%clk 0:01:39.4]} 23...
Bh4 {[%clk 0:01:54.5]} 24. Re2 {[%clk 0:01:37.9]} 24... Rab8 {[%clk 0:01:50.9]}
25. Nxc4 {[%clk 0:01:34.4]} 25... c5 {[%clk 0:01:51.2]} 26. Nd6 {[%clk
0:01:23.3]} 26... Rc6 {[%clk 0:01:50.9]} 27. dxc5 {[%clk 0:01:23]} 27... Rxc5
{[%clk 0:01:49.3]} 28. Rd1 {[%clk 0:01:22.7]} 28... Bg6 {[%clk 0:01:44.4]} 29.
Red2 {[%clk 0:01:15.7]} 29... Bg3 {[%clk 0:01:34.4]} 30. Rd3 {[%clk 0:01:13.8]}
30... Be5 {[%clk 0:01:29.7]} 31. Bxe5 {[%clk 0:01:12.3]} 31... Rxe5 {[%clk
0:01:29.7]} 32. Rd4 {[%clk 0:01:12]} 32... Rxb2 {[%clk 0:01:28.6]} 33. Nc4
{[%clk 0:01:12.4]} 33... Bh5 {[%clk 0:01:11]} 34. Nxe5 {[%clk 0:01:07.4]} 34...
Bxd1 {[%clk 0:01:10.5]} 35. Rxd1 {[%clk 0:01:08.3]} 35... f6 {[%clk 0:01:09]}
36. Rd8+ {[%clk 0:01:06.1]} 36... Kh7 {[%clk 0:01:08.7]} 37. Nd7 {[%clk
0:01:06.1]} 37... Kg6 {[%clk 0:01:06.8]} 38. Nf8+ {[%clk 0:01:05.9]} 38... Kg5
{[%clk 0:01:06.7]} 39. Nxe6+ {[%clk 0:01:03.7]} 39... Kh4 {[%clk 0:01:05.9]} 40.
Nxg7 {[%clk 0:01:03.1]} 40... Kg3 {[%clk 0:01:05]} 41. Nf5+ {[%clk 0:01:03.4]}
41... Kf4 {[%clk 0:01:05.5]} 42. Re8 {[%clk 0:01:00.9]} 42... Ra2 {[%clk
0:01:04.3]} 43. g3+ {[%clk 0:01:00.7]} 43... Kf3 {[%clk 0:01:03.5]} 44. Nd4+
{[%clk 0:00:59.3]} 44... Ke3 {[%clk 0:01:01.1]} 45. Nf5+ {[%clk 0:00:57.2]}
45... Kf3 {[%clk 0:01:01.3]} 46. h4 {[%clk 0:00:51.8]} 46... Rxa4 {[%clk
0:00:45.9]} 47. h5 {[%clk 0:00:50.9]} 47... a5 {[%clk 0:00:35.6]} 48. Nxh6
{[%clk 0:00:43.8]} 48... Rxe4 {[%clk 0:00:24.9]} 49. Rxe4 {[%clk 0:00:43.5]}
49... Kxe4 {[%clk 0:00:25]} 50. Nf7 {[%clk 0:00:43.3]} 50... a4 {[%clk
0:00:21.1]} 51. Nd6+ {[%clk 0:00:43.5]} 51... Kd5 {[%clk 0:00:18.1]} 52. Nb5
{[%clk 0:00:43.7]} 52... Ke6 {[%clk 0:00:14.3]} 53. Na3 {[%clk 0:00:43.6]} 53...
Kf5 {[%clk 0:00:07.3]} 54. g4+ {[%clk 0:00:43.6]} 54... Kg5 {[%clk 0:00:07.3]}
55. Kg2 {[%clk 0:00:43.9]} 55... f5 {[%clk 0:00:07.5]} 56. gxf5 {[%clk
0:00:27.3]} 56... Kxf5 {[%clk 0:00:07.9]} 57. Kf3 {[%clk 0:00:25]} 57... Kg5
{[%clk 0:00:08.2]} 58. Ke4 {[%clk 0:00:25.9]} 58... Kxh5 {[%clk 0:00:08.5]} 59.
Kd4 {[%clk 0:00:26.8]} 59... Kh4 {[%clk 0:00:08.3]} 60. Kc4 {[%clk 0:00:27.7]}
60... Kh3 {[%clk 0:00:08.7]} 61. Kb4 {[%clk 0:00:28.6]} 61... Kh2 {[%clk
0:00:09.1]} 62. Kxa4 {[%clk 0:00:29.5]} 1/2-1/2

[Event "*** Titled Tuesday Blitz"]
[Site "Chess.com"]
[Date "2020.04.07"]
[Round "2"]
[White "Manukyan_Artak"]
[Black "CakeinSpace2002"]
[Result "0-1"]
[WhiteElo "2427"]
[BlackElo "2175"]
[TimeControl "180+1"]
[EndTime "13:19:59 PDT"]
[Termination "CakeinSpace2002 won by resignation"]

1. e4 {[%clk 0:03:00.9]} 1... d5 {[%clk 0:02:55.2]} 2. exd5 {[%clk 0:03:00.1]}
2... Qxd5 {[%clk 0:02:54.7]} 3. Nc3 {[%clk 0:03:00.6]} 3... Qd8 {[%clk
0:02:55.2]} 4. d4 {[%clk 0:03:01]} 4... Nf6 {[%clk 0:02:53.9]} 5. Bc4 {[%clk
0:03:00.9]} 5... g6 {[%clk 0:02:45.8]} 6. h3 {[%clk 0:02:54.4]} 6... Bg7 {[%clk
0:02:45.5]} 7. Nf3 {[%clk 0:02:54.3]} 7... O-O {[%clk 0:02:45.7]} 8. Bg5 {[%clk
0:02:49.3]} 8... a6 {[%clk 0:02:45.8]} 9. O-O {[%clk 0:02:44.2]} 9... b5 {[%clk
0:02:45]} 10. Be2 {[%clk 0:02:42.5]} 10... Bb7 {[%clk 0:02:44.1]} 11. Re1 {[%clk
0:02:35.3]} 11... Nbd7 {[%clk 0:02:43.2]} 12. Qc1 {[%clk 0:02:27.5]} 12... c5
{[%clk 0:02:42.6]} 13. dxc5 {[%clk 0:02:21]} 13... Nxc5 {[%clk 0:02:43.5]} 14.
Bh6 {[%clk 0:02:21.5]} 14... e6 {[%clk 0:02:39.4]} 15. Bxg7 {[%clk 0:02:19]}
15... Kxg7 {[%clk 0:02:40.3]} 16. a3 {[%clk 0:02:07.8]} 16... Rc8 {[%clk
0:02:37.9]} 17. Qg5 {[%clk 0:02:04.7]} 17... Nce4 {[%clk 0:02:33.1]} 18. Nxe4
{[%clk 0:02:01.1]} 18... Nxe4 {[%clk 0:02:31.7]} 19. Qxd8 {[%clk 0:01:57.4]}
19... Rfxd8 {[%clk 0:02:32.6]} 20. c3 {[%clk 0:01:57.4]} 20... Nc5 {[%clk
0:02:29.7]} 21. Rad1 {[%clk 0:01:56]} 21... Bd5 {[%clk 0:02:25.4]} 22. Nd4
{[%clk 0:01:53.3]} 22... e5 {[%clk 0:02:24.9]} 23. Nf3 {[%clk 0:01:46.6]} 23...
f6 {[%clk 0:02:23.6]} 24. Kf1 {[%clk 0:01:30.1]} 24... Bb3 {[%clk 0:02:21.6]}
25. Rxd8 {[%clk 0:01:28.6]} 25... Rxd8 {[%clk 0:02:21.4]} 26. Rc1 {[%clk
0:01:25.1]} 26... Nd3 {[%clk 0:02:13.1]} 27. Bxd3 {[%clk 0:01:24.1]} 27... Rxd3
{[%clk 0:02:13.8]} 28. Ke2 {[%clk 0:01:17.7]} 28... Bc4 {[%clk 0:02:07.7]} 29.
Ke1 {[%clk 0:01:17.7]} 29... h6 {[%clk 0:02:00.6]} 30. Nd2 {[%clk 0:01:04.3]}
30... f5 {[%clk 0:01:59.4]} 31. Rd1 {[%clk 0:00:49.1]} 31... Bd5 {[%clk
0:01:47.2]} 32. f3 {[%clk 0:00:47.4]} 32... Kf6 {[%clk 0:01:44.4]} 33. Nf1
{[%clk 0:00:35.7]} 33... Rxd1+ {[%clk 0:01:41.3]} 34. Kxd1 {[%clk 0:00:35.9]}
34... e4 {[%clk 0:01:41.5]} 35. f4 {[%clk 0:00:35]} 35... g5 {[%clk 0:01:34.9]}
36. g3 {[%clk 0:00:34.7]} 36... h5 {[%clk 0:01:27.1]} 37. h4 {[%clk 0:00:33.8]}
37... g4 {[%clk 0:01:08.6]} 38. Ne3 {[%clk 0:00:32]} 38... Ke6 {[%clk
0:01:07.5]} 39. Kc2 {[%clk 0:00:31.2]} 39... a5 {[%clk 0:01:06.6]} 40. b3 {[%clk
0:00:31.3]} 40... a4 {[%clk 0:01:01.8]} 41. bxa4 {[%clk 0:00:30.7]} 41... bxa4
{[%clk 0:01:01.6]} 42. c4 {[%clk 0:00:31.6]} 42... Bc6 {[%clk 0:00:58.1]} 43.
Kc3 {[%clk 0:00:32.1]} 43... Kd6 {[%clk 0:00:41]} 44. Nxf5+ {[%clk 0:00:30.7]}
44... Kc5 {[%clk 0:00:40.9]} 45. Ne3 {[%clk 0:00:29.7]} 45... Bd7 {[%clk
0:00:39.2]} 46. f5 {[%clk 0:00:28]} 46... Be8 {[%clk 0:00:39.1]} 47. f6 {[%clk
0:00:20]} 47... Bf7 {[%clk 0:00:38.6]} 48. Nf5 {[%clk 0:00:18.2]} 48... Bxc4
{[%clk 0:00:36.1]} 49. Nh6 {[%clk 0:00:17.3]} 49... e3 {[%clk 0:00:32.5]} 50. f7
{[%clk 0:00:17.5]} 50... Bxf7 {[%clk 0:00:25.2]} 51. Nxf7 {[%clk 0:00:18.4]}
51... e2 {[%clk 0:00:25.6]} 52. Kd2 {[%clk 0:00:18.7]} 52... Kc4 {[%clk
0:00:25.1]} 53. Nd6+ {[%clk 0:00:16.5]} 53... Kb3 {[%clk 0:00:26]} 54. Nb5
{[%clk 0:00:16.2]} 54... Kc4 {[%clk 0:00:24.8]} 55. Nc3 {[%clk 0:00:14.7]} 55...
e1=Q+ {[%clk 0:00:24.2]} 56. Kxe1 {[%clk 0:00:14.2]} 56... Kxc3 {[%clk
0:00:25.1]} 57. Kd1 {[%clk 0:00:12.6]} 57... Kd3 {[%clk 0:00:24.6]} 58. Kc1
{[%clk 0:00:11.3]} 58... Ke3 {[%clk 0:00:24.6]} 59. Kc2 {[%clk 0:00:11.7]} 59...
Kf3 {[%clk 0:00:24.9]} 60. Kc3 {[%clk 0:00:12.6]} 60... Kxg3 {[%clk 0:00:25]}
61. Kb4 {[%clk 0:00:13.5]} 61... Kxh4 {[%clk 0:00:24.7]} 62. Kxa4 {[%clk
0:00:14.4]} 62... g3 {[%clk 0:00:25]} 0-1

[Event "*** Titled Tuesday Blitz"]
[Site "Chess.com"]
[Date "2020.04.07"]
[Round "2"]
[White "erlesfar"]
[Black "IMUltimateBeast"]
[Result "0-1"]
[WhiteElo "2056"]
[BlackElo "2631"]
[TimeControl "180+1"]
[EndTime "13:20:00 PDT"]
[Termination "IMUltimateBeast won by checkmate"]

1. e4 {[%clk 0:03:00.9]} 1... c5 {[%clk 0:02:59.8]} 2. d4 {[%clk 0:02:55.5]}
2... cxd4 {[%clk 0:02:59.5]} 3. c3 {[%clk 0:02:55.3]} 3... dxc3 {[%clk 0:02:56]}
4. Nxc3 {[%clk 0:02:54.9]} 4... Nc6 {[%clk 0:02:55.1]} 5. Nf3 {[%clk 0:02:55]}
5... d6 {[%clk 0:02:53.6]} 6. Bc4 {[%clk 0:02:54.5]} 6... e6 {[%clk 0:02:53.3]}
7. O-O {[%clk 0:02:53.7]} 7... Nf6 {[%clk 0:02:52.6]} 8. Qe2 {[%clk 0:02:53.6]}
8... Be7 {[%clk 0:02:52.4]} 9. Rd1 {[%clk 0:02:53.1]} 9... Bd7 {[%clk
0:02:47.9]} 10. h3 {[%clk 0:02:47.1]} 10... a6 {[%clk 0:02:47]} 11. Bf4 {[%clk
0:02:46.2]} 11... e5 {[%clk 0:02:44]} 12. Bg5 {[%clk 0:02:43.9]} 12... Be6
{[%clk 0:02:35.7]} 13. b4 {[%clk 0:02:23.4]} 13... O-O {[%clk 0:02:34.2]} 14.
Rab1 {[%clk 0:02:12]} 14... Rc8 {[%clk 0:02:32.2]} 15. Bxe6 {[%clk 0:02:02.4]}
15... fxe6 {[%clk 0:02:31.5]} 16. b5 {[%clk 0:02:02.4]} 16... axb5 {[%clk
0:02:25.6]} 17. Nxb5 {[%clk 0:02:01.9]} 17... Qd7 {[%clk 0:02:19.1]} 18. Bxf6
{[%clk 0:01:54.9]} 18... gxf6 {[%clk 0:02:13.7]} 19. Qd2 {[%clk 0:01:43.7]}
19... Rfd8 {[%clk 0:02:12.5]} 20. Nc3 {[%clk 0:01:33.1]} 20... Bf8 {[%clk
0:02:00.6]} 21. Na4 {[%clk 0:01:31.9]} 21... Qc7 {[%clk 0:01:50]} 22. Nb6 {[%clk
0:01:29.1]} 22... Rb8 {[%clk 0:01:49.7]} 23. Rdc1 {[%clk 0:01:22.3]} 23... Qf7
{[%clk 0:01:47.8]} 24. Qb2 {[%clk 0:01:12.6]} 24... d5 {[%clk 0:01:42.5]} 25.
Qe2 {[%clk 0:01:00.3]} 25... dxe4 {[%clk 0:01:38.8]} 26. Qxe4 {[%clk 0:01:00]}
26... f5 {[%clk 0:01:36.6]} 27. Qc4 {[%clk 0:00:59.2]} 27... Bg7 {[%clk
0:01:20.8]} 28. Ng5 {[%clk 0:00:57.9]} 28... Qf6 {[%clk 0:01:11]} 29. Qxe6+
{[%clk 0:00:48]} 29... Qxe6 {[%clk 0:01:09.4]} 30. Nxe6 {[%clk 0:00:47.9]} 30...
Rd6 {[%clk 0:01:01.4]} 31. Nc5 {[%clk 0:00:46.8]} 31... Rd2 {[%clk 0:00:59.9]}
32. Nbd7 {[%clk 0:00:42.2]} 32... Re8 {[%clk 0:00:58.2]} 33. Rxb7 {[%clk
0:00:41.1]} 33... Nd4 {[%clk 0:00:57.5]} 34. Rcb1 {[%clk 0:00:35.1]} 34... Rxa2
{[%clk 0:00:56.3]} 35. Rb8 {[%clk 0:00:34.5]} 35... Rxb8 {[%clk 0:00:52.8]} 36.
Rxb8+ {[%clk 0:00:33.4]} 36... Kf7 {[%clk 0:00:53.7]} 37. Rb7 {[%clk 0:00:33.6]}
37... Kg6 {[%clk 0:00:52.2]} 38. Rb6+ {[%clk 0:00:33.3]} 38... Kg5 {[%clk
0:00:50.6]} 39. Ne6+ {[%clk 0:00:32.8]} 39... Nxe6 {[%clk 0:00:49.2]} 40. Rxe6
{[%clk 0:00:32.8]} 40... e4 {[%clk 0:00:50.1]} 41. Ne5 {[%clk 0:00:32.3]} 41...
Ra1+ {[%clk 0:00:45.4]} 42. Kh2 {[%clk 0:00:32]} 42... Bxe5+ {[%clk 0:00:46.3]}
43. Rxe5 {[%clk 0:00:30.9]} 43... Kf4 {[%clk 0:00:47.2]} 44. Re7 {[%clk
0:00:30.3]} 44... Ra2 {[%clk 0:00:45.7]} 45. Kg1 {[%clk 0:00:30.4]} 45... Ra1+
{[%clk 0:00:45]} 46. Kh2 {[%clk 0:00:30.4]} 46... Rf1 {[%clk 0:00:45.5]} 47.
Rxh7 {[%clk 0:00:25.2]} 47... Rxf2 {[%clk 0:00:43.1]} 48. Re7 {[%clk 0:00:25]}
48... Rd2 {[%clk 0:00:36.3]} 49. h4 {[%clk 0:00:23.4]} 49... Rd8 {[%clk
0:00:31.3]} 50. Kh3 {[%clk 0:00:21.1]} 50... Rd3+ {[%clk 0:00:27]} 51. Kh2
{[%clk 0:00:20.5]} 51... Rd6 {[%clk 0:00:27.9]} 52. Kh3 {[%clk 0:00:17.7]} 52...
Rd1 {[%clk 0:00:21.1]} 53. Kh2 {[%clk 0:00:14.1]} 53... Kg4 {[%clk 0:00:15.7]}
54. Re5 {[%clk 0:00:12.7]} 54... Rf1 {[%clk 0:00:14.6]} 55. h5 {[%clk
0:00:10.6]} 55... Kxh5 {[%clk 0:00:14.3]} 56. Kg3 {[%clk 0:00:11.3]} 56... Kg5
{[%clk 0:00:14.1]} 57. Re8 {[%clk 0:00:11.3]} 57... f4+ {[%clk 0:00:13.6]} 58.
Kh2 {[%clk 0:00:12.1]} 58... Re1 {[%clk 0:00:13.2]} 59. Re5+ {[%clk 0:00:11.2]}
59... Kf6 {[%clk 0:00:12.9]} 60. Re8 {[%clk 0:00:11.1]} 60... Kf5 {[%clk
0:00:13.1]} 61. Kh3 {[%clk 0:00:11.1]} 61... Rh1# {[%clk 0:00:12.5]} 0-1

[Event "*** Titled Tuesday Blitz"]
[Site "Chess.com"]
[Date "2020.04.07"]
[Round "2"]
[White "Chessalary"]
[Black "JustWatch000"]
[Result "0-1"]
[WhiteElo "2252"]
[BlackElo "2579"]
[TimeControl "180+1"]
[EndTime "13:20:00 PDT"]
[Termination "JustWatch000 won by resignation"]

1. e4 {[%clk 0:03:00.6]} 1... c5 {[%clk 0:02:59.9]} 2. Nf3 {[%clk 0:03:00.3]}
2... e6 {[%clk 0:02:58.9]} 3. d4 {[%clk 0:03:01]} 3... cxd4 {[%clk 0:02:59.8]}
4. Nxd4 {[%clk 0:03:01.9]} 4... Nf6 {[%clk 0:02:59.5]} 5. Nc3 {[%clk 0:03:00.3]}
5... Nc6 {[%clk 0:02:59.9]} 6. Ndb5 {[%clk 0:02:58.6]} 6... d6 {[%clk
0:02:58.4]} 7. Bf4 {[%clk 0:02:58.7]} 7... e5 {[%clk 0:02:59]} 8. Bg5 {[%clk
0:02:59.3]} 8... a6 {[%clk 0:02:59.3]} 9. Na3 {[%clk 0:02:59.9]} 9... b5 {[%clk
0:02:58.9]} 10. Nd5 {[%clk 0:03:00.4]} 10... Be7 {[%clk 0:02:58.9]} 11. Bxf6
{[%clk 0:03:01]} 11... Bxf6 {[%clk 0:02:59.5]} 12. c3 {[%clk 0:03:01.9]} 12...
O-O {[%clk 0:02:59.3]} 13. Nc2 {[%clk 0:03:00.9]} 13... Be6 {[%clk 0:02:59.5]}
14. Nce3 {[%clk 0:02:59.7]} 14... Bg5 {[%clk 0:02:59]} 15. h4 {[%clk 0:02:57.9]}
15... Bh6 {[%clk 0:02:57]} 16. a4 {[%clk 0:02:53.7]} 16... bxa4 {[%clk 0:02:43]}
17. Rxa4 {[%clk 0:02:54.6]} 17... a5 {[%clk 0:02:42.7]} 18. b3 {[%clk
0:02:53.6]} 18... Rb8 {[%clk 0:02:42.1]} 19. Bc4 {[%clk 0:02:53.5]} 19... Qd7
{[%clk 0:02:03.8]} 20. g4 {[%clk 0:02:17]} 20... Bf4 {[%clk 0:02:02.4]} 21. Nxf4
{[%clk 0:02:13.1]} 21... exf4 {[%clk 0:01:56.3]} 22. Nf5 {[%clk 0:02:12.9]}
22... Ne5 {[%clk 0:01:28.5]} 23. Bxe6 {[%clk 0:01:52.9]} 23... Qxe6 {[%clk
0:01:21.3]} 24. O-O {[%clk 0:01:37.3]} 24... Qxb3 {[%clk 0:01:09.8]} 25. Qxb3
{[%clk 0:01:33.5]} 25... Rxb3 {[%clk 0:01:10.7]} 26. Rxa5 {[%clk 0:01:30.8]}
26... Rxc3 {[%clk 0:01:06.6]} 27. Nxd6 {[%clk 0:01:28.5]} 27... Nf3+ {[%clk
0:01:07]} 28. Kg2 {[%clk 0:01:23.3]} 28... Nxh4+ {[%clk 0:01:07]} 29. Kh2 {[%clk
0:01:20.4]} 29... Nf3+ {[%clk 0:01:07]} 30. Kg2 {[%clk 0:01:13.9]} 30... g6
{[%clk 0:01:01.3]} 31. Nb5 {[%clk 0:01:10.8]} 31... Nh4+ {[%clk 0:00:56.2]} 32.
Kh2 {[%clk 0:01:07.8]} 32... Rc5 {[%clk 0:00:56.6]} 33. Rfa1 {[%clk 0:00:53.8]}
33... h5 {[%clk 0:00:55.7]} 34. gxh5 {[%clk 0:00:51.3]} 34... Rxh5 {[%clk
0:00:55.9]} 35. Nd6 {[%clk 0:00:48.3]} 35... Nf3+ {[%clk 0:00:55.3]} 36. Kg2
{[%clk 0:00:48.2]} 36... Ne5 {[%clk 0:00:55.6]} 37. Ra8 {[%clk 0:00:42.4]} 37...
Rg5+ {[%clk 0:00:52.3]} 38. Kf1 {[%clk 0:00:35]} 38... Nd7 {[%clk 0:00:22.7]}
39. Rxf8+ {[%clk 0:00:29.8]} 39... Kxf8 {[%clk 0:00:22.2]} 40. Ra7 {[%clk
0:00:27.2]} 40... Ne5 {[%clk 0:00:20.6]} 41. f3 {[%clk 0:00:21.5]} 41... Rh5
{[%clk 0:00:18.4]} 42. Kg2 {[%clk 0:00:21]} 42... Rg5+ {[%clk 0:00:18.6]} 43.
Kf1 {[%clk 0:00:20.8]} 43... Rg3 {[%clk 0:00:18.9]} 44. Ke2 {[%clk 0:00:20.9]}
44... Rg2+ {[%clk 0:00:18.4]} 45. Kf1 {[%clk 0:00:20.8]} 45... Rd2 {[%clk
0:00:18.7]} 46. Nb5 {[%clk 0:00:18.7]} 46... Nxf3 {[%clk 0:00:18.9]} 47. Nc3
{[%clk 0:00:16.2]} 47... Nh2+ {[%clk 0:00:18.8]} 48. Kg1 {[%clk 0:00:15.7]}
48... Ng4 {[%clk 0:00:18.5]} 49. Ra8+ {[%clk 0:00:14.8]} 49... Kg7 {[%clk
0:00:18.4]} 50. Nd5 {[%clk 0:00:14.7]} 50... f3 {[%clk 0:00:18.3]} 51. Ra1
{[%clk 0:00:13.6]} 51... Rg2+ {[%clk 0:00:18.1]} 52. Kh1 {[%clk 0:00:11.4]}
52... Rh2+ {[%clk 0:00:17.6]} 53. Kg1 {[%clk 0:00:11.1]} 53... f2+ {[%clk
0:00:18.5]} 0-1

[Event "*** Titled Tuesday Blitz"]
[Site "Chess.com"]
[Date "2020.04.07"]
[Round "2"]
[White "LastHeroJr"]
[Black "ChelsieMonica"]
[Result "1-0"]
[WhiteElo "2555"]
[BlackElo "2227"]
[TimeControl "180+1"]
[EndTime "13:20:02 PDT"]
[Termination "LastHeroJr won by checkmate"]

1. e4 {[%clk 0:03:00.9]} 1... e5 {[%clk 0:02:09.1]} 2. Nf3 {[%clk 0:02:59.8]}
2... Nc6 {[%clk 0:02:09.3]} 3. Bc4 {[%clk 0:02:59.6]} 3... Bc5 {[%clk 0:02:09]}
4. O-O {[%clk 0:02:58.3]} 4... Nf6 {[%clk 0:02:09.3]} 5. d3 {[%clk 0:02:58.7]}
5... O-O {[%clk 0:02:08.2]} 6. a4 {[%clk 0:02:58.6]} 6... a5 {[%clk 0:02:07.4]}
7. c3 {[%clk 0:02:57.9]} 7... Be7 {[%clk 0:02:06.8]} 8. Re1 {[%clk 0:02:56.6]}
8... d6 {[%clk 0:02:07.2]} 9. h3 {[%clk 0:02:56.7]} 9... Be6 {[%clk 0:02:07.7]}
10. Nbd2 {[%clk 0:02:56.3]} 10... h6 {[%clk 0:02:07]} 11. Qb3 {[%clk 0:02:53]}
11... Qc8 {[%clk 0:02:06.5]} 12. Nf1 {[%clk 0:02:48.4]} 12... Kh8 {[%clk
0:01:57.7]} 13. Ng3 {[%clk 0:02:44.3]} 13... Nd8 {[%clk 0:01:52.1]} 14. d4
{[%clk 0:02:39.5]} 14... Bxc4 {[%clk 0:01:37]} 15. Qxc4 {[%clk 0:02:39]} 15...
Nd7 {[%clk 0:01:37.6]} 16. Nf5 {[%clk 0:02:20.4]} 16... Bf6 {[%clk 0:01:37.1]}
17. Nh2 {[%clk 0:02:20.3]} 17... Nb6 {[%clk 0:01:32.8]} 18. Qd3 {[%clk
0:02:09.5]} 18... exd4 {[%clk 0:01:31.2]} 19. cxd4 {[%clk 0:02:09.1]} 19... c5
{[%clk 0:01:31.5]} 20. e5 {[%clk 0:01:29.1]} 20... c4 {[%clk 0:01:14.8]} 21. Qc2
{[%clk 0:01:06.5]} 21... dxe5 {[%clk 0:00:53.5]} 22. dxe5 {[%clk 0:01:06.9]}
22... Bg5 {[%clk 0:00:49.7]} 23. f4 {[%clk 0:00:55.6]} 23... g6 {[%clk
0:00:48.8]} 24. Nd6 {[%clk 0:00:49.6]} 24... Qc6 {[%clk 0:00:38]} 25. fxg5
{[%clk 0:00:47.7]} 25... h5 {[%clk 0:00:37.1]} 26. Nf3 {[%clk 0:00:45.1]} 26...
Ne6 {[%clk 0:00:36.4]} 27. Be3 {[%clk 0:00:39.7]} 27... Nd5 {[%clk 0:00:35.8]}
28. Qxc4 {[%clk 0:00:37.4]} 28... Qxc4 {[%clk 0:00:33.8]} 29. Nxc4 {[%clk
0:00:38.3]} 29... Rac8 {[%clk 0:00:34.4]} 30. Rac1 {[%clk 0:00:33.3]} 30... Nxe3
{[%clk 0:00:31.3]} 31. Nxe3 {[%clk 0:00:31.3]} 31... Rcd8 {[%clk 0:00:30.9]} 32.
Nc4 {[%clk 0:00:29.4]} 32... Rd5 {[%clk 0:00:28.6]} 33. Nd6 {[%clk 0:00:28.3]}
33... b6 {[%clk 0:00:26.1]} 34. Red1 {[%clk 0:00:26.1]} 34... Rc5 {[%clk
0:00:23.2]} 35. Rxc5 {[%clk 0:00:22.3]} 35... Nxc5 {[%clk 0:00:24.1]} 36. Rd4
{[%clk 0:00:22.1]} 36... Kg7 {[%clk 0:00:23.3]} 37. Kf2 {[%clk 0:00:21]} 37...
Rb8 {[%clk 0:00:21.7]} 38. Ke2 {[%clk 0:00:18.7]} 38... Ne6 {[%clk 0:00:21.3]}
39. Rc4 {[%clk 0:00:17.9]} 39... b5 {[%clk 0:00:19.5]} 40. axb5 {[%clk
0:00:17.1]} 40... a4 {[%clk 0:00:19.8]} 41. Rc6 {[%clk 0:00:14.9]} 41... a3
{[%clk 0:00:19.6]} 42. bxa3 {[%clk 0:00:14.9]} 42... Ra8 {[%clk 0:00:20]} 43.
Rc3 {[%clk 0:00:13.9]} 43... Ra4 {[%clk 0:00:20]} 44. b6 {[%clk 0:00:13.3]}
44... Ra8 {[%clk 0:00:20.1]} 45. b7 {[%clk 0:00:13.5]} 45... Rb8 {[%clk
0:00:20.3]} 46. a4 {[%clk 0:00:13.6]} 46... Nf4+ {[%clk 0:00:19.7]} 47. Kf2
{[%clk 0:00:13.2]} 47... Nd5 {[%clk 0:00:19.5]} 48. Rb3 {[%clk 0:00:13.1]} 48...
Nc7 {[%clk 0:00:17]} 49. a5 {[%clk 0:00:13.1]} 49... Kf8 {[%clk 0:00:17.4]} 50.
Nd4 {[%clk 0:00:13]} 50... f6 {[%clk 0:00:14.7]} 51. gxf6 {[%clk 0:00:12.7]}
51... g5 {[%clk 0:00:14.8]} 52. Nc6 {[%clk 0:00:12.7]} 52... Rxb7 {[%clk
0:00:14.5]} 53. Rxb7 {[%clk 0:00:13.6]} 53... Ne8 {[%clk 0:00:14.9]} 54. Rf7+
{[%clk 0:00:11.8]} 54... Kg8 {[%clk 0:00:15]} 55. Ne7+ {[%clk 0:00:12.7]} 55...
Kh8 {[%clk 0:00:14.9]} 56. Ng6+ {[%clk 0:00:13.6]} 56... Kg8 {[%clk 0:00:14.5]}
57. Re7 {[%clk 0:00:08.6]} 57... Nxd6 {[%clk 0:00:14]} 58. exd6 {[%clk
0:00:09.5]} 58... h4 {[%clk 0:00:13.9]} 59. d7 {[%clk 0:00:09.4]} 59... g4
{[%clk 0:00:14.5]} 60. d8=Q# {[%clk 0:00:10.3]} 1-0